bitfinex/quotes_BTCUSD_20250908
["timestamp","ask_amount","ask_price","bid_price","bid_amount"]
[1757306690719,0.58453464,111110.0,111100.0,0.00543]
[1757306690937,0.61546837,111110.0,111100.0,0.185448]
[1757306691760,0.62481383,111110.0,111100.0,0.185448]
[1757306691961,0.62581383,111110.0,111100.0,0.185448]
[1757306692729,0.22669203,111110.0,111100.0,0.185448]
[1757306692962,0.37665203,111110.0,111100.0,0.185448]
[1757306693376,0.37765203,111110.0,111100.0,0.185448]
[1757306693579,0.37665203,111110.0,111100.0,0.185448]
[1757306693780,0.37565203,111110.0,111100.0,0.186448]
[1757306695471,0.1863468,111110.0,111100.0,0.186448]
[1757306695616,0.37565203,111110.0,111100.0,0.186448]
[1757306696288,0.55565383,111110.0,111100.0,0.186448]
[1757306697247,0.52861249,111110.0,111100.0,0.186448]
[1757306702336,0.34861069,111110.0,111100.0,0.186448]
[1757306703531,0.18930523,111110.0,111100.0,0.186448]
[1757306703776,0.33922523,111110.0,111100.0,0.186448]
[1757306707235,0.14992,111110.0,111100.0,0.186448]
[1757306707411,0.33922523,111110.0,111100.0,0.186448]
[1757306707844,0.14992,111110.0,111100.0,0.186448]
[1757306708097,0.33922523,111110.0,111100.0,0.186448]
[1757306708959,0.51922703,111110.0,111100.0,0.186448]
[1757306710481,0.51913228,111110.0,111100.0,0.186448]
[1757306710693,0.70834276,111110.0,111100.0,0.00643]
[1757306710916,0.51913228,111110.0,111100.0,0.00643]
[1757306711136,0.70834276,111110.0,111100.0,0.00643]
[1757306711595,0.3299218,111110.0,111100.0,0.186448]
[1757306711813,0.70834276,111110.0,111100.0,0.186448]
[1757306713658,0.70834276,111110.0,111100.0,0.00643]
[1757306720860,0.70834276,111110.0,111100.0,0.186448]
[1757306723075,0.71049276,111110.0,111100.0,0.186398]
[1757306723274,0.70834276,111110.0,111100.0,0.186398]
[1757306724267,0.3299218,111110.0,111100.0,0.186398]
[1757306724467,0.14992,111110.0,111100.0,0.186398]
[1757306724703,0.33913048,111110.0,111100.0,0.186398]
[1757306730519,0.33909048,111110.0,111100.0,0.186398]
[1757306730983,0.51909228,111110.0,111100.0,0.186398]
[1757306732448,0.33909048,111110.0,111100.0,0.186398]
[1757306732903,0.51909228,111110.0,111100.0,0.186398]
[1757306738393,0.51909228,111110.0,111100.0,0.183298]
[1757306738602,0.51909228,111110.0,111100.0,0.186318]
[1757306742937,0.51909228,111110.0,111100.0,0.186318]
[1757306745451,0.33909048,111110.0,111100.0,0.186318]
[1757306745865,0.33905048,111110.0,111100.0,0.186318]
[1757306749950,0.18921048,111110.0,111100.0,0.186318]
[1757306750131,0.33905048,111110.0,111100.0,0.186318]
[1757306750784,0.18921048,111110.0,111100.0,0.186318]
[1757306751117,0.51905228,111110.0,111100.0,0.186318]
[1757306752782,0.3298418,111110.0,111100.0,0.186318]
[1757306752987,0.51905228,111110.0,111100.0,0.186318]
[1757306754403,0.52108228,111110.0,111100.0,0.00328]
[1757306754630,0.51905228,111110.0,111100.0,0.0064]
[1757306757162,0.54609052,111110.0,111100.0,0.0064]
[1757306758197,0.54609052,111110.0,111100.0,0.186418]
[1757306760500,0.54609052,111110.0,111100.0,0.0064]
[1757306762091,0.35688004,111110.0,111100.0,0.0064]
[1757306762312,0.54609052,111110.0,111100.0,0.0064]
[1757306765223,0.54609052,111110.0,111100.0,0.186418]
[1757306766209,0.740551,111110.0,111100.0,0.0012]
[1757306766431,1.29454148,111110.0,111100.0,0.0012]
[1757306766633,2.68164878,111110.0,111100.0,0.0012]
[1757306767794,2.68164878,111110.0,111100.0,0.0002]
[1757306769628,2.68264878,111110.0,111100.0,0.0002]
[1757306770390,2.49366364,111110.0,111100.0,0.0002]
[1757306771216,2.51051011,111110.0,111100.0,0.0002]
[1757306771450,2.49366364,111110.0,111100.0,0.0002]
[1757306775038,2.50266364,111110.0,111100.0,0.0002]
[1757306775843,2.52360246,111110.0,111100.0,0.0002]
[1757306776050,2.48014824,111110.0,111100.0,0.0002]
[1757306776457,0.180018,111100.0,111090.0,0.0002]
[1757306776660,4.55093529,111100.0,111090.0,0.0002]
[1757306776895,4.58025532,111100.0,111090.0,0.0002]
[1757306777107,4.60730329,111100.0,111090.0,0.0002]
[1757306777977,4.60730329,111100.0,111090.0,0.0012]
[1757306781180,4.96824211,111100.0,111090.0,0.0012]
[1757306781387,4.98760966,111100.0,111090.0,0.0012]
[1757306782172,4.98760966,111100.0,111090.0,0.0002]
[1757306783010,4.98860966,111100.0,111090.0,0.0002]
[1757306783663,5.17793281,111100.0,111090.0,1e-08]
[1757306783884,4.98860966,111100.0,111090.0,1e-08]
[1757306785398,4.97239287,111100.0,111090.0,1e-08]
[1757306786037,4.82155287,111100.0,111090.0,1e-08]
[1757306786250,4.97451287,111100.0,111090.0,1e-08]
[1757306786667,4.97651287,111100.0,111090.0,1e-08]
[1757306788867,4.97649975,111100.0,111090.0,1e-08]
[1757306789072,4.97650015,111100.0,111090.0,1e-08]
[1757306792893,4.97650761,111100.0,111090.0,1e-08]
[1757306793317,4.98281224,111100.0,111090.0,1e-08]
[1757306795344,5.03940767,111100.0,111090.0,1e-08]
[1757306796323,5.03941538,111100.0,111090.0,1e-08]
[1757306797142,5.01522234,111100.0,111090.0,1e-08]
[1757306800213,5.01525704,111100.0,111090.0,1e-08]
[1757306800422,5.06381661,111100.0,111090.0,1e-08]
[1757306804417,4.26504461,111100.0,111090.0,1e-08]
[1757306806312,4.23264222,111100.0,111090.0,1e-08]
[1757306806532,4.26500311,111100.0,111090.0,1e-08]
[1757306808966,4.23264222,111100.0,111090.0,1e-08]
[1757306809144,4.26501264,111100.0,111090.0,1e-08]
[1757306809370,4.23264222,111100.0,111090.0,1e-08]
[1757306809802,4.24164222,111100.0,111090.0,1e-08]
[1757306809987,4.27401795,111100.0,111090.0,1e-08]
[1757306810410,4.24164222,111100.0,111090.0,1e-08]
[1757306810979,4.24166812,111100.0,111090.0,1e-08]
[1757306811984,4.29166812,111100.0,111090.0,1e-08]
[1757306814313,4.14178812,111100.0,111090.0,1e-08]
[1757306814558,4.29166812,111100.0,111090.0,1e-08]
[1757306814740,4.29168827,111100.0,111090.0,1e-08]
[1757306816266,4.48101142,111100.0,111090.0,1e-08]
[1757306816478,4.29168827,111100.0,111090.0,1e-08]
[1757306817336,4.29168786,111100.0,111090.0,1e-08]
[1757306818186,4.2916877,111100.0,111090.0,1e-08]
[1757306818819,4.2916877,111100.0,111070.0,0.00028]
[1757306818820,0.34,111080.0,111070.0,0.00028]
[1757306819032,3.75643638,111080.0,111070.0,0.00028]
[1757306819244,3.55875781,111080.0,111070.0,0.00028]
[1757306819460,3.68434124,111080.0,111070.0,0.00028]
[1757306819633,3.71139433,111080.0,111070.0,0.00028]
[1757306820051,3.71147805,111080.0,111070.0,0.00028]
[1757306820473,2.79731962,111080.0,111070.0,0.00028]
[1757306820601,2.77479962,111080.0,111070.0,0.00028]
[1757306820828,2.77183962,111080.0,111070.0,0.00028]
[1757306821261,2.74754305,111080.0,111070.0,0.00028]
[1757306822508,2.74954305,111080.0,111070.0,0.00028]
[1757306822709,1.83025705,111080.0,111070.0,0.00235]
[1757306822927,1.82925705,111080.0,111070.0,0.00528]
[1757306823357,1.66250394,111080.0,111070.0,0.00528]
[1757306823511,1.81238394,111080.0,111070.0,0.00528]
[1757306823921,1.81138394,111080.0,111070.0,0.00528]
[1757306824124,1.81238394,111080.0,111070.0,0.00528]
[1757306824674,1.81438394,111080.0,111070.0,0.00528]
[1757306826321,1.88358394,111080.0,111070.0,0.00528]
[1757306826855,1.86530862,111080.0,111070.0,0.00528]
[1757306827082,1.86530862,111080.0,111070.0,0.00235]
[1757306828888,1.86530862,111080.0,111070.0,0.00028]
[1757306832444,2.05490228,111080.0,111070.0,0.00028]
[1757306836444,2.05490228,111080.0,111070.0,0.00235]
[1757306837514,2.05490228,111080.0,111070.0,0.00028]
[1757306837700,2.62314224,111080.0,111070.0,0.00028]
[1757306837906,2.05490228,111080.0,111070.0,0.00028]
[1757306838392,2.05786228,111080.0,111070.0,0.00028]
[1757306838556,2.05490228,111080.0,111070.0,0.00235]
[1757306838763,2.05490228,111080.0,111070.0,0.00528]
[1757306842377,2.05490228,111080.0,111070.0,0.00235]
[1757306842722,2.67514881,111080.0,111070.0,0.00028]
[1757306842931,2.69201515,111080.0,111070.0,0.00028]
[1757306843140,2.69833999,111080.0,111070.0,0.00028]
[1757306843354,2.69834005,111080.0,111070.0,0.00028]
[1757306844220,2.69201515,111080.0,111070.0,0.00028]
[1757306844441,2.31951357,111080.0,111070.0,0.00028]
[1757306844684,2.69834021,111080.0,111070.0,0.00028]
[1757306847903,2.12724025,111080.0,111070.0,0.00028]
[1757306848170,2.12724025,111080.0,111070.0,0.0023]
[1757306848393,2.01853425,111080.0,111070.0,0.00534]
[1757306848624,2.02063425,111080.0,111070.0,0.00534]
[1757306848849,2.02063425,111080.0,111070.0,0.00028]
[1757306849460,2.0206466,111080.0,111070.0,0.00028]
[1757306852123,2.0206466,111080.0,111070.0,0.0023]
[1757306852550,2.0206466,111080.0,111070.0,0.00028]
[1757306852752,2.0236666,111080.0,111070.0,0.00028]
[1757306852989,1.8706066,111080.0,111070.0,0.0023]
[1757306853193,2.0206066,111080.0,111070.0,0.0023]
[1757306853983,2.02060999,111080.0,111070.0,0.0023]
[1757306854336,2.02060999,111080.0,111070.0,0.00028]
[1757306854532,1.45237003,111080.0,111070.0,0.0023]
[1757306854732,2.02060999,111080.0,111070.0,0.00534]
[1757306854956,2.02060999,111080.0,111070.0,0.0023]
[1757306855162,2.02060999,111080.0,111070.0,0.00028]
[1757306855570,1.67458874,111080.0,111070.0,0.00028]
[1757306855791,1.67760874,111080.0,111070.0,0.00028]
[1757306857652,1.67760888,111080.0,111070.0,0.00028]
[1757306858194,1.67458888,111080.0,111070.0,0.00028]
[1757306859841,1.32210488,111080.0,111070.0,0.00534]
[1757306860108,1.47384756,111080.0,111070.0,0.00534]
[1757306860288,1.65693152,111080.0,111070.0,0.00534]
[1757306861488,1.65697152,111080.0,111070.0,0.00534]
[1757306864392,1.6400936,111080.0,111070.0,0.00534]
[1757306865451,1.6421936,111080.0,111070.0,0.00534]
[1757306866073,1.6400936,111080.0,111070.0,0.00534]
[1757306866897,1.4900936,111080.0,111070.0,0.00534]
[1757306867100,1.6400536,111080.0,111070.0,0.00534]
[1757306868585,1.64224442,111080.0,111070.0,0.00534]
[1757306869428,1.6834302,111080.0,111070.0,0.00534]
[1757306870390,1.62903664,111080.0,111070.0,0.00534]
[1757306871430,1.62903664,111080.0,111070.0,0.00028]
[1757306872510,1.05869668,111080.0,111070.0,0.00549]
[1757306872716,1.62693664,111080.0,111070.0,0.00549]
[1757306873132,1.62899664,111080.0,111070.0,0.00549]
[1757306873389,1.62899664,111080.0,111070.0,0.00244]
[1757306874037,1.65562664,111080.0,111070.0,0.00028]
[1757306874883,1.68626282,111080.0,111070.0,0.00028]
[1757306875976,1.68626286,111080.0,111070.0,0.00028]
[1757306876212,1.68626232,111080.0,111070.0,0.00028]
[1757306876436,2.25450228,111080.0,111070.0,1e-08]
[1757306876647,1.68626232,111080.0,111070.0,1e-08]
[1757306879538,1.68626028,111080.0,111070.0,1e-08]
[1757306880261,1.68625938,111080.0,111070.0,1e-08]
[1757306882739,1.68316938,111080.0,111070.0,1e-08]
[1757306883054,1.67684059,111080.0,111070.0,1e-08]
[1757306883693,1.67684059,111080.0,111070.0,0.00216001]
[1757306883919,1.67684059,111080.0,111070.0,1e-08]
[1757306885302,1.68316849,111080.0,111070.0,1e-08]
[1757306886171,1.68625849,111080.0,111070.0,1e-08]
[1757306887681,1.68316849,111080.0,111070.0,1e-08]
[1757306888109,1.68625849,111080.0,111070.0,1e-08]
[1757306888750,2.25449845,111080.0,111070.0,1e-08]
[1757306889813,1.68316849,111080.0,111070.0,1e-08]
[1757306890044,1.11492853,111080.0,111070.0,0.00521001]
[1757306890290,1.68316849,111080.0,111070.0,0.00216001]
[1757306890730,1.68625941,111080.0,111070.0,1e-08]
[1757306890940,1.68316941,111080.0,111070.0,1e-08]
[1757306892469,1.49686123,111080.0,111070.0,1e-08]
[1757306892676,1.51780005,111080.0,111070.0,1e-08]
[1757306893151,1.51780058,111080.0,111070.0,1e-08]
[1757306895148,1.51840239,111080.0,111070.0,1e-08]
[1757306896735,1.51848333,111080.0,111070.0,1e-08]
[1757306897240,1.36535333,111080.0,111070.0,0.00216001]
[1757306897472,1.36535333,111080.0,111070.0,0.00521001]
[1757306897473,1.09001273,111080.0,111070.0,0.00521001]
[1757306897703,1.27310432,111080.0,111070.0,0.00521001]
[1757306897929,1.27318432,111080.0,111070.0,0.00521001]
[1757306898151,1.23199992,111080.0,111070.0,0.00521001]
[1757306899049,0.89068392,111080.0,111070.0,0.00521001]
[1757306899293,1.04080392,111080.0,111070.0,0.00521001]
[1757306910905,1.04078679,111080.0,111070.0,0.00521001]
[1757306913393,1.04062679,111080.0,111070.0,0.00521001]
[1757306916983,0.26932991,111080.0,111070.0,0.00521001]
[1757306917199,0.43932292,111080.0,111070.0,0.00521001]
[1757306917414,0.92924292,111080.0,111070.0,0.00521001]
[1757306917626,0.92924292,111080.0,111070.0,0.18527663]
[1757306917837,0.92824292,111080.0,111070.0,0.18527663]
[1757306918046,0.86004292,111080.0,111070.0,0.00521001]
[1757306918252,0.85804292,111080.0,111070.0,0.00521001]
[1757306918638,0.51804292,111080.0,111070.0,0.00621001]
[1757306919909,0.51704292,111080.0,111070.0,0.00621001]
[1757306920334,0.51704292,111080.0,111070.0,0.00721001]
[1757306921489,0.51704292,111080.0,111070.0,0.18727663]
[1757306921699,0.54712992,111080.0,111070.0,0.00721001]
[1757306924236,0.33045041,111080.0,111070.0,0.00721001]
[1757306924439,0.52053137,111080.0,111070.0,0.00721001]
[1757306925036,0.33111048,111080.0,111070.0,0.00721001]
[1757306925235,0.52053137,111080.0,111070.0,0.00721001]
[1757306927364,0.54757773,111080.0,111070.0,0.00721001]
[1757306932450,0.35815684,111080.0,111070.0,0.18727663]
[1757306932658,0.35815684,111080.0,111070.0,0.00721001]
[1757306932659,0.54757773,111080.0,111070.0,0.00721001]
[1757306933104,0.54757773,111080.0,111070.0,0.18727663]
[1757306936459,0.39717773,111080.0,111070.0,0.18727663]
[1757306936936,0.20775684,111080.0,111070.0,0.18727663]
[1757306937156,0.39717773,111080.0,111070.0,0.18727663]
[1757306937397,0.37013137,111080.0,111070.0,0.18727663]
[1757306939527,0.00066007,111080.0,111070.0,0.18727663]
[1757306941289,0.00066007,111080.0,111070.0,0.27919262]
[1757306941801,0.00066007,111080.0,111070.0,0.48955233]
[1757306942022,0.00066007,111080.0,111070.0,0.51659348]
[1757306942408,0.00066007,111080.0,111070.0,0.51559348]
[1757306942824,0.00066007,111080.0,111070.0,0.51459348]
[1757306943074,0.00066007,111080.0,111070.0,0.51759348]
[1757306944799,0.00066007,111080.0,111070.0,0.66795348]
[1757306945028,0.00066007,111080.0,111070.0,0.67195348]
[1757306947300,0.00066007,111080.0,111070.0,1.01195348]
[1757306948734,0.00066007,111080.0,111070.0,0.86159348]
[1757306948943,0.00066007,111080.0,111070.0,0.82249259]
[1757306949160,0.00066007,111080.0,111070.0,0.67217259]
[1757306949370,0.00066007,111080.0,111070.0,0.82249259]
[1757306955113,0.00066007,111080.0,111070.0,1.01174927]
[1757306956230,0.00066007,111080.0,111070.0,0.82249259]
[1757306956553,0.00066007,111080.0,111070.0,1.01174927]
[1757306960036,0.00066007,111080.0,111070.0,0.82249259]
[1757306960216,0.00066007,111080.0,111070.0,1.01174927]
[1757306964575,0.00066007,111080.0,111070.0,0.67217259]
[1757306964811,0.00066007,111080.0,111070.0,1.01174927]
[1757306965027,0.18991675,111080.0,111070.0,0.82249259]
[1757306966605,0.00066007,111080.0,111070.0,0.82249259]
[1757306969902,0.00066007,111080.0,111070.0,1.01174927]
[1757306972349,0.00066007,111080.0,111070.0,0.82249259]
[1757306972555,0.00066007,111080.0,111070.0,1.01174927]
[1757306973589,0.00066007,111080.0,111070.0,0.82249259]
[1757306981301,0.00066007,111080.0,111070.0,0.89165259]
[1757306983574,0.00066007,111080.0,111070.0,1.08090927]
[1757306986683,0.00066007,111080.0,111070.0,1.08090927]
[1757306988411,0.00066007,111080.0,111070.0,0.89165259]
[1757306996668,0.37917343,111080.0,111070.0,0.53039377]
[1757306996886,0.55922384,111080.0,111070.0,0.38039377]
[1757306997137,0.56117384,111080.0,111070.0,0.23141001]
[1757306997349,0.56117384,111080.0,111070.0,0.15704001]
[1757306997555,0.18266048,111080.0,111070.0,0.16205001]
[1757306997975,0.56117384,111080.0,111070.0,0.16205001]
[1757306998185,0.56117384,111080.0,111070.0,0.15906001]
[1757307000207,0.56442384,111080.0,111070.0,0.15704001]
[1757307000409,0.56442384,111080.0,111070.0,0.15708001]
[1757307003190,0.56442384,111080.0,111070.0,0.00700001]
[1757307004737,0.75368052,111080.0,111070.0,0.00700001]
[1757307004951,1.11812052,111080.0,111070.0,0.00700001]
[1757307005367,1.14516991,111080.0,111070.0,0.00700001]
[1757307005815,0.77325275,111080.0,111070.0,0.00700001]
[1757307006032,1.14255984,111080.0,111070.0,0.00300001]
[1757307006240,1.14340024,111080.0,111070.0,0.00300001]
[1757307006454,1.14340024,111080.0,111070.0,0.00600001]
[1757307007225,1.14340024,111080.0,111070.0,0.00300001]
[1757307007644,1.14340024,111080.0,111070.0,0.00500001]
[1757307008414,1.23531623,111080.0,111070.0,0.00500001]
[1757307008810,1.23531623,111080.0,111070.0,1e-08]
[1757307009433,1.23531623,111080.0,111070.0,0.00300001]
[1757307010848,1.23531623,111080.0,111070.0,0.00200001]
[1757307011060,2.50645823,111080.0,111070.0,0.00200001]
[1757307011516,2.50645823,111080.0,111070.0,0.00300001]
[1757307012235,2.50645823,111080.0,111070.0,1e-08]
[1757307012647,2.50645823,111080.0,111070.0,0.00100001]
[1757307013632,2.49351223,111080.0,111070.0,0.00100001]
[1757307014453,2.30456431,111080.0,111070.0,0.00100001]
[1757307015225,2.22110031,111080.0,111070.0,0.00100001]
[1757307019399,2.22110031,111080.0,111070.0,1e-08]
[1757307019863,2.22310031,111080.0,111070.0,1e-08]
[1757307020514,2.24244035,111080.0,111070.0,1e-08]
[1757307020843,2.26337917,111080.0,111070.0,1e-08]
[1757307024835,2.28018155,111080.0,111070.0,1e-08]
[1757307026426,2.30435158,111080.0,111070.0,1e-08]
[1757307029579,2.31066068,111080.0,111070.0,1e-08]
[1757307031334,2.3430561,111080.0,111070.0,1e-08]
[1757307035402,2.31888607,111080.0,111070.0,1e-08]
[1757307037547,2.36749731,111080.0,111070.0,1e-08]
[1757307039888,2.37592584,111080.0,111070.0,1e-08]
[1757307040529,1.67834096,111080.0,111070.0,1e-08]
[1757307040709,1.46561886,111080.0,111070.0,1e-08]
[1757307040949,1.31948691,111080.0,111070.0,0.00305001]
[1757307041585,1.28709149,111080.0,111070.0,0.00305001]
[1757307042468,1.28709149,111080.0,111070.0,0.00521001]
[1757307044815,1.28709149,111080.0,111070.0,1e-08]
[1757307048610,1.47650255,111080.0,111070.0,1e-08]
[1757307050153,1.28709149,111080.0,111070.0,1e-08]
[1757307050768,1.35629149,111080.0,111070.0,1e-08]
[1757307051380,1.34998239,111080.0,111070.0,1e-08]
[1757307053382,1.16057133,111080.0,111070.0,1e-08]
[1757307053592,1.5151154,111080.0,111070.0,1e-08]
[1757307053785,1.53939345,111080.0,111070.0,1e-08]
[1757307054424,1.5151154,111080.0,111070.0,1e-08]
[1757307058181,1.6651154,111080.0,111070.0,1e-08]
[1757307058390,1.68939345,111080.0,111070.0,1e-08]
[1757307059118,1.68940291,111080.0,111070.0,1e-08]
[1757307061092,1.64578482,111080.0,111070.0,1e-08]
[1757307061298,1.68949378,111080.0,111070.0,1e-08]
[1757307061526,1.69581765,111080.0,111070.0,1e-08]
[1757307062130,1.68949378,111080.0,111070.0,1e-08]
[1757307062697,1.45127996,111080.0,111070.0,0.00318001]
[1757307062948,1.30127996,111080.0,111070.0,0.00526001]
[1757307063159,1.45122996,111080.0,111070.0,0.00526001]
[1757307065554,1.47551272,111080.0,111070.0,0.00526001]
[1757307065804,1.45122996,111080.0,111070.0,0.00526001]
[1757307066373,1.45122996,111080.0,111070.0,1e-08]
[1757307067689,1.45122996,111080.0,111070.0,0.00318001]
[1757307068374,1.47551272,111080.0,111070.0,0.00318001]
[1757307068570,1.30317972,111080.0,111070.0,0.00526001]
[1757307068792,1.45317972,111080.0,111070.0,0.00526001]
[1757307070835,1.30317972,111080.0,111070.0,0.00526001]
[1757307071051,1.45317972,111080.0,111070.0,0.00526001]
[1757307072635,1.45319294,111080.0,111070.0,0.00526001]
[1757307074328,1.45517294,111080.0,111070.0,0.00526001]
[1757307075877,1.30319294,111080.0,111070.0,0.00526001]
[1757307076078,1.36300694,111080.0,111070.0,0.00526001]
[1757307076490,1.7417225,111080.0,111070.0,0.00526001]
[1757307077337,1.5917225,111080.0,111070.0,0.00526001]
[1757307077554,0.07034875,111080.0,111070.0,0.53581816]
[1757307077765,0.0028404,111080.0,111070.0,0.53581816]
[1757307077971,0.0028404,111080.0,111070.0,0.69107817]
[1757307078376,0.0018404,111080.0,111070.0,0.69107817]
[1757307078794,0.0018404,111080.0,111070.0,0.69307817]
[1757307079219,0.0008404,111080.0,111070.0,0.69307817]
[1757307079641,0.0008404,111080.0,111070.0,0.50370263]
[1757307079889,0.0008404,111080.0,111070.0,0.69307817]
[1757307080103,0.0008404,111080.0,111070.0,0.35470263]
[1757307080311,0.0008404,111080.0,111070.0,0.69407817]
[1757307083334,0.0008404,111080.0,111070.0,0.71205906]
[1757307084399,0.0008404,111080.0,111070.0,0.69407817]
[1757307084622,0.0008404,111080.0,111070.0,0.71501699]
[1757307085480,0.0008404,111080.0,111070.0,0.90501699]
[1757307085691,0.0008404,111080.0,111070.0,1.05397699]
[1757307086144,0.0008404,111080.0,111070.0,1.05497699]
[1757307086560,0.0008404,111080.0,111070.0,1.05797699]
[1757307086762,0.18937554,111110.0,111100.0,0.180018]
[1757307086970,0.18942219,111110.0,111100.0,0.49109399]
[1757307087192,0.18942219,111110.0,111100.0,0.49614399]
[1757307088861,0.19042219,111110.0,111100.0,0.49614399]
[1757307092762,0.00104665,111110.0,111100.0,0.49614399]
[1757307092959,0.00104665,111110.0,111100.0,0.68551953]
[1757307093315,0.00104665,111110.0,111100.0,0.52317984]
[1757307093517,0.00104665,111110.0,111100.0,0.52313984]
[1757307093721,4.665e-05,111110.0,111100.0,0.52313984]
[1757307094144,4.665e-05,111110.0,111100.0,0.71251538]
[1757307094345,4.665e-05,111110.0,111100.0,0.52313984]
[1757307094626,4.665e-05,111110.0,111100.0,0.37321984]
[1757307094837,4.665e-05,111110.0,111100.0,0.52317984]
[1757307096312,4.665e-05,111110.0,111100.0,0.52617984]
[1757307096718,4.665e-05,111110.0,111100.0,0.52917984]
[1757307097554,4.665e-05,111110.0,111100.0,0.52913984]
[1757307100083,4.665e-05,111110.0,111100.0,0.37921984]
[1757307100520,4.665e-05,111110.0,111100.0,0.52913984]
[1757307101826,4.665e-05,111110.0,111100.0,0.37921984]
[1757307102043,0.18942219,111110.0,111100.0,0.37921984]
[1757307102246,0.18942219,111110.0,111100.0,0.52913984]
[1757307107886,4.665e-05,111110.0,111100.0,0.52913984]
[1757307109482,0.18942219,111110.0,111100.0,0.52913984]
[1757307111689,4.665e-05,111110.0,111100.0,0.52913984]
[1757307111898,0.18942219,111110.0,111100.0,0.52913984]
[1757307114379,4.665e-05,111110.0,111100.0,0.52913984]
[1757307114604,0.18942219,111110.0,111100.0,0.52913984]
[1757307116041,0.18285394,111120.0,111110.0,0.1800018]
[1757307116182,0.18937554,111120.0,111110.0,0.1800018]
[1757307116396,0.18937554,111120.0,111110.0,0.1851418]
[1757307117467,0.18937554,111120.0,111110.0,0.1871418]
[1757307118435,0.18937554,111120.0,111110.0,0.1891418]
[1757307119597,0.18885099,111120.0,111110.0,0.1891418]
[1757307120498,0.18937554,111120.0,111110.0,0.1891418]
[1757307122096,0.18896924,111130.0,111110.0,0.1891418]
[1757307122298,0.19746006,111130.0,111120.0,0.14988]
[1757307122508,0.3888356,111130.0,111120.0,0.15502]
[1757307123612,0.3888356,111130.0,111120.0,0.15602]
[1757307124220,0.38039143,111130.0,111120.0,0.15602]
[1757307125177,0.38039143,111130.0,111120.0,0.15702]
[1757307126958,0.38039143,111130.0,111120.0,0.22618]
[1757307129411,0.57282697,111130.0,111120.0,0.07116]
[1757307129619,1.18645041,111130.0,111120.0,0.15188]
[1757307129833,1.21073317,111130.0,111120.0,0.002]
[1757307130048,1.21073317,111130.0,111120.0,0.15196]
[1757307130420,1.18645041,111130.0,111120.0,0.15196]
[1757307131080,1.18645041,111130.0,111120.0,0.15096]
[1757307131365,1.17800505,111130.0,111120.0,0.15096]
[1757307131607,1.17800505,111130.0,111120.0,0.14996]
[1757307132208,1.16111432,111130.0,111120.0,0.14996]
[1757307132637,0.1800018,111110.0,111100.0,0.0812209]
[1757307132838,0.36937734,111110.0,111100.0,0.2332209]
[1757307134145,0.36937734,111110.0,111100.0,0.4132389]
[1757307134352,0.18937554,111110.0,111100.0,0.4152389]
[1757307135027,0.18937554,111110.0,111100.0,0.4172389]
[1757307136489,0.18918846,111110.0,111100.0,0.4172389]
[1757307139246,0.17999936,111120.0,111100.0,0.4172389]
[1757307139457,0.18918846,111110.0,111100.0,0.4141789]
[1757307140262,0.18918846,111110.0,111100.0,0.4172389]
[1757307140874,0.18918846,111110.0,111100.0,0.4152389]
[1757307141325,0.18918846,111110.0,111100.0,0.4142389]
[1757307141767,0.36918782,111120.0,111100.0,0.4142389]
[1757307141994,0.71820435,111130.0,111110.0,0.1829818]
[1757307142223,0.71820435,111130.0,111120.0,0.1549]
[1757307146124,0.71820435,111130.0,111120.0,0.1569]
[1757307150818,0.72026435,111130.0,111120.0,0.1569]
[1757307151264,0.71820435,111130.0,111120.0,0.1569]
[1757307157779,0.72026435,111130.0,111120.0,0.1569]
[1757307160252,0.72026435,111130.0,111120.0,0.15610103]
[1757307161851,0.72026435,111130.0,111120.0,0.15312103]
[1757307162883,0.72026435,111130.0,111120.0,0.004]
[1757307163105,0.72026435,111130.0,111120.0,0.15388]
[1757307164924,0.72324435,111130.0,111120.0,0.15388]
[1757307165431,0.72324435,111130.0,111120.0,0.15188]
[1757307166158,0.72324435,111130.0,111120.0,0.15388]
[1757307166365,0.72026435,111130.0,111120.0,0.15388]
[1757307167405,0.72026435,111130.0,111120.0,0.15686]
[1757307172671,0.72026435,111130.0,111120.0,0.3368456]
[1757307172872,0.71820435,111130.0,111120.0,0.3368456]
[1757307178085,0.74523999,111130.0,111120.0,0.3368456]
[1757307179524,0.74724999,111130.0,111120.0,0.3368456]
[1757307182844,0.74724999,111130.0,111120.0,0.15686]
[1757307183285,0.74724999,111130.0,111120.0,0.15388]
[1757307183515,0.75018999,111130.0,111120.0,0.15388]
[1757307183938,0.74724999,111130.0,111120.0,0.15388]
[1757307184850,0.74724999,111130.0,111120.0,0.3370656]
[1757307185277,0.55627075,111130.0,111120.0,0.3370656]
[1757307187997,0.73624015,111130.0,111120.0,0.3370656]
[1757307188206,0.73825015,111130.0,111120.0,0.3370656]
[1757307191160,0.73825015,111130.0,111120.0,0.15388]
[1757307192094,0.73825015,111130.0,111120.0,0.15708]
[1757307192933,0.73825015,111130.0,111120.0,0.3370656]
[1757307195741,0.73825015,111130.0,111120.0,0.29436184]
[1757307195944,0.74119015,111130.0,111120.0,0.29315184]
[1757307196151,0.74119015,111130.0,111120.0,0.11117624]
[1757307196357,0.93032085,111130.0,111120.0,0.11316624]
[1757307197177,0.93032085,111130.0,111120.0,0.29315184]
[1757307200997,0.93032085,111130.0,111120.0,0.11316624]
[1757307201589,0.93032085,111130.0,111110.0,0.25235028]
[1757307201844,0.54906169,111130.0,111120.0,0.14988]
[1757307202670,0.55227169,111130.0,111120.0,0.14988]
[1757307202793,0.93059085,111130.0,111120.0,0.14988]
[1757307203627,0.93059085,111130.0,111120.0,0.15088]
[1757307203997,1.08047085,111130.0,111120.0,0.15088]
[1757307205460,1.08047085,111130.0,111120.0,0.15289]
[1757307205767,0.89131127,111130.0,111120.0,0.15289]
[1757307206656,1.08047085,111130.0,111120.0,0.15289]
[1757307206885,0.89131127,111130.0,111120.0,0.15289]
[1757307207792,0.89131127,111130.0,111120.0,0.3328756]
[1757307208002,0.88810127,111130.0,111120.0,0.3328756]
[1757307208396,0.70612187,111130.0,111120.0,0.3360256]
[1757307208783,0.88609127,111130.0,111120.0,0.3360256]
[1757307209405,0.71206177,111130.0,111120.0,0.3360256]
[1757307209612,0.54604462,111130.0,111120.0,0.3360256]
[1757307209773,0.54604462,111130.0,111120.0,0.3328756]
[1757307209980,0.54809462,111130.0,111120.0,0.3328756]
[1757307210297,0.54604462,111130.0,111120.0,0.3360256]
[1757307210505,0.54604462,111130.0,111120.0,0.3328756]
[1757307212025,0.54604462,111130.0,111120.0,0.3360256]
[1757307212374,0.21619522,111130.0,111120.0,0.3360256]
[1757307213441,0.18915958,111130.0,111120.0,0.3360256]
[1757307224707,0.37117898,111130.0,111120.0,0.3328756]
[1757307231674,0.37117898,111130.0,111120.0,0.15289]